fUSD/lending_fUSD_20251023
["ID","MTS","AMOUNT","RATE_DAILY","PERIOD"]
[392133022,1761196232888,-501.61459127,0.00044414,10]
[392133023,1761196232897,-496.0,0.0004455,30]
[392133024,1761196232907,-848.17,0.00044594,2]
[392133025,1761196232916,-503.3681,0.000449,2]
[392133026,1761196232926,-278.9521,0.000449,2]
[392133027,1761196232936,-1962.1899,0.000449,2]
[392133028,1761196232946,-5000.0,0.000449,120]
[392133029,1761196232955,-162.00228212,0.000449,20]
[392133030,1761196232966,-296.23438388,0.000449,2]
[392133031,1761196232975,-160.82940427,0.000449,28]
[392133032,1761196232989,-501.75908607,0.00044973,10]
[392133033,1761196232999,-506.61231004,0.00044973,10]
[392133034,1761196233008,-635.83016289,0.00044973,10]
[392133035,1761196233018,-5699.84848548,0.0004499,3]
[392133036,1761196233029,-207.60310393,0.0004499,7]
[392133037,1761196233039,-398.64324047,0.0004499,30]
[392133038,1761196233049,-500.67602621,0.00044999,60]
[392133039,1761196233059,-238.2073395,0.00044999,120]
[392133040,1761196233069,-500.0,0.00044999,120]
[392133041,1761196233079,-500.0,0.00044999,120]
[392133042,1761196233088,-500.0,0.00044999,120]
[392133043,1761196233099,-196.83,0.00044999,120]
[392133044,1761196233109,-531.6466883,0.00044999,120]
[392133045,1761196233119,-500.0,0.00044999,120]
[392133046,1761196233129,-500.0,0.00044999,120]
[392133047,1761196233139,-500.0,0.00044999,120]
[392133048,1761196233149,-500.0,0.00044999,120]
[392133049,1761196233158,-500.0,0.00044999,120]
[392133050,1761196233168,-500.0,0.00044999,120]
[392133051,1761196233178,-500.0,0.00044999,120]
[392133052,1761196233188,-500.0,0.00044999,120]
[392133053,1761196233198,-600.0,0.00044999,120]
[392133054,1761196233208,-500.0,0.00044999,120]
[392133055,1761196233218,-500.0,0.00044999,120]
[392133056,1761196233228,-500.0,0.00044999,2]
[392133057,1761196233238,-500.0,0.00044999,2]
[392133058,1761196233248,-535.48,0.00044999,2]
[392133059,1761196233257,-300.0,0.00044999,2]
[392133060,1761196233266,-320.44521854,0.00044999,120]
[392133061,1761196233275,-211.64008656,0.00044999,120]
[392133062,1761196233285,-500.0,0.00044999,120]
[392133063,1761196233294,-302.46642932,0.00044999,120]
[392133064,1761196233303,-500.0,0.00044999,120]
[392133065,1761196233312,-194.37500612,0.00044999,120]
[392133066,1761196233321,-32181.07265076,0.00045,120]
[392133067,1761196233352,-500.0,0.00039772,31]
[392133068,1761196233366,-191.35910006,0.00039772,31]
[392133069,1761196233375,-187.78102154,0.00039772,31]
[392133070,1761196233387,-312.21897846,0.00039772,31]
[392133071,1761196233396,-500.0,0.00039772,31]
[392133072,1761196233405,-271.82871115,0.00045,120]
[392133073,1761196233416,-18535.41911184,0.00045,120]
[392133081,1761196238099,-161.0,0.00036,15]
[392133082,1761196238108,-500.0,0.00039772,31]
[392133083,1761196238118,-500.0,0.00039772,31]
[392133084,1761196238127,-564.391,0.00042339,2]
[392133085,1761196238136,-491.681792,0.00045,120]
[392133086,1761196238148,-5632.89148163,0.00045,120]
[392133092,1761196239975,-1582.4540178,0.00045,120]
[392133093,1761196239988,-4491.57970894,0.00045,120]
[392133094,1761196239999,-4368.65980068,0.00045,120]
[392133095,1761196240011,-4128.63986883,0.00045,120]
[392133096,1761196240022,-4432.26839026,0.00045,120]
[392133097,1761196240034,-16569.89875697,0.00045,120]
[392133098,1761196240046,-1363.68834929,0.00045,120]
[392133099,1761196240057,-14896.46297549,0.00045,120]
[392133100,1761196240069,-3829.98099585,0.00045,120]
[392133101,1761196240080,-17539.04528594,0.00045,120]
[392133102,1761196240096,-30697.64954253,0.00045,120]
[392133103,1761196240112,-544.0,0.00045,120]
[392133104,1761196240124,-1920.7,0.00045,120]
[392133105,1761196240144,-777.8699362,0.00045,120]
[392133111,1761196242987,-115750.93986271,0.00045,120]
[392133112,1761196243043,-693008.08916406,0.00045,120]
[392133113,1761196243335,-26985.17959707,0.00045,120]
[392133114,1761196243345,-31927.38680194,0.00045,120]
[392133115,1761196243357,-54071.61999998,0.00045,120]
[392133116,1761196243369,-32250.62564886,0.00045,120]
[392133117,1761196243379,-386599.999998,0.00045,120]
[392133141,1761196246005,-7743.67121945,0.00045,120]
[392133142,1761196246018,-282.38395366,0.00045,120]
[392133143,1761196246033,-286.6,0.00045,120]
[392133144,1761196246062,-2177.28,0.00045,120]
[392133145,1761196246085,-49.87906644,0.00045,120]
[392133146,1761196246120,-356.6800002,0.00045,120]
[392133147,1761196273027,-162.4,0.00036,15]
[392133148,1761196273051,-151.0,0.00036771,2]
[392133149,1761196273078,-300.0,0.00039771,5]
[392133150,1761196273109,-500.0,0.00039772,31]
[392133151,1761196273136,-500.0,0.00039772,31]
[392133152,1761196273161,-500.0,0.00039772,31]
[392133153,1761196273188,-500.0,0.00039772,31]
[392133154,1761196273215,-500.0,0.00039772,31]
[392133155,1761196273242,-166.95571677,0.00039772,31]
[392133156,1761196273265,-153.0,0.00041,90]
[392133157,1761196273292,-263.75451056,0.000449,2]
[392133158,1761196273320,-46302.88977267,0.00045,120]
[392133159,1761196274296,-50000.0,0.00045,120]
[392133160,1761196275406,-50000.0,0.00045,120]
[392133161,1761196276705,-50000.0,0.00045,120]
[392133162,1761196277901,-50000.0,0.00045,120]
[392133163,1761196279651,-50000.0,0.00045,120]
[392133169,1761196851589,45242.0,0.00036175,30]
[392133171,1761197108300,50000.0,0.00015,2]
[392133172,1761197108334,50000.0,0.00015,2]
[392133173,1761197108361,50000.0,0.00015,2]
[392133174,1761197108389,50000.0,0.00015,2]
[392133175,1761197108421,994718.03343856,0.00015,2]
[392133176,1761197114143,313259.55760908,0.00036175,30]
[392133177,1761197126728,7805.34768111,0.00036175,30]
[392133179,1761197134409,69560.32261174,0.00036175,30]
[392133180,1761197136124,-164.046809,0.00028,2]
[392133181,1761197143298,6398.98468398,0.00036175,30]
[392133182,1761197147393,10000.0,0.0002,3]
[392133183,1761197148373,-178.55255593,0.0002,2]
[392133184,1761197150873,-250.22304369,0.0002,2]
[392133185,1761197168700,-193.46494146,0.00019999,2]
[392133186,1761197173603,-106.53505854,0.00019999,2]
[392133187,1761197173626,-85.71190526,0.0002,2]
[392133188,1761197176667,-165.7930362,0.0002,2]
[392133190,1761197195052,26371.6175079,0.00036175,30]
[392133192,1761197233086,-180.55698282,0.00019899,2]
[392133193,1761197234087,-199.66012018,0.00019899,2]
[392133194,1761197234113,-500.0,0.00019999,2]
[392133195,1761197234139,-242.95334917,0.00019999,2]
[392133196,1761197276255,838678.82294925,0.00015,2]
[392133198,1761197289214,-265.16966228,0.00019898,2]
[392133199,1761197290758,1226.13270455,0.0001439,2]
[392133200,1761197293037,-102.81355772,0.00019898,2]
[392133201,1761197293060,-101.85778443,0.00019948,2]
[392133202,1761197307833,26071.48724095,0.00036175,30]
[392133203,1761197315564,67817.53974873,0.00036175,30]
[392133205,1761197319815,2212.08659175,0.00015807,2]
[392133207,1761197322738,12794.58847424,0.00036175,30]
[392133208,1761197323081,6616.75435548,0.00036175,30]
[392133209,1761197347102,-198.14221557,0.00019948,2]
[392133210,1761197347123,-1200.0,0.00019998,2]
[392133211,1761197347145,-42.70830021,0.00019999,2]
[392133212,1761197347166,-500.0,0.00019999,2]
[392133213,1761197347188,-500.0,0.00019999,2]
[392133214,1761197347208,-500.0,0.00019999,2]
[392133215,1761197347232,-500.0,0.00019999,2]
[392133216,1761197347254,-500.0,0.00019999,2]
[392133217,1761197347276,-500.0,0.00019999,2]
[392133218,1761197347299,-10.76163139,0.00019999,2]
[392133219,1761197349113,-489.23836861,0.00019999,2]
[392133220,1761197349137,-500.0,0.00019999,2]
[392133221,1761197349173,-500.0,0.00019999,2]
[392133222,1761197349198,-162.153924,0.00019999,2]
[392133223,1761197349224,-20607.04020838,0.0002,2]
[392133224,1761197349252,-3579.44881548,0.0002,2]
[392133225,1761197349272,-1033.51002156,0.0002,2]
[392133226,1761197349293,-263.31644501,0.0002,2]
[392133227,1761197349313,-1200.0,0.00021776,2]
[392133228,1761197349333,-300.0,0.00021888,2]
[392133229,1761197349353,-2325.95245502,0.00021888,2]
[392133230,1761197349380,-195.0,0.00021888,2]
[392133231,1761197349400,-2500.0,0.00021999,2]
[392133232,1761197349421,-250.0,0.00022,2]
[392133233,1761197349441,-371.63725965,0.000225,2]
[392133234,1761197357138,-151.87794743,0.0002465,2]
[392133235,1761197357158,-195.88018385,0.00025,2]
[392133236,1761197357177,-204.55756132,0.00025,2]
[392133237,1761197357196,-1884.17555157,0.00025,7]
[392133238,1761197395392,250.0,0.00017,2]
[392133239,1761197396461,300.0,0.00019,2]
[392133256,1761197432150,-640.0,0.00027999,2]
[392133257,1761197432161,-1198.8427499,0.00027999,2]
[392133258,1761197432262,-1.1572501,0.00027999,2]
[392133259,1761197432272,-300.0,0.00027999,2]
[392133260,1761197432282,-300.0,0.00027999,120]
[392133261,1761197432291,-339.78432598,0.00028,2]
[392133262,1761197432305,-88120.32823748,0.00028,2]
[392133263,1761197432316,-300.0,0.000284,120]
[392133264,1761197432327,-500.0,0.00028826,2]
[392133265,1761197432336,-150.0,0.00029173,120]
[392133266,1761197432346,-420.0,0.00030239,2]
[392133267,1761197432355,-1680.0,0.00030371,2]
[392133268,1761197432366,-250.0,0.00030799,2]
[392133269,1761197432375,-300.0,0.00030799,120]
[392133270,1761197432386,-200.0,0.00031,7]
[392133271,1761197432396,-250.0,0.00031708,2]
[392133272,1761197432405,-689.69507178,0.00031708,120]
[392133273,1761197432415,-500.0,0.000318,5]
[392133274,1761197432424,-200.0,0.000321,7]
[392133275,1761197432434,-213.0,0.00032658,3]
[392133277,1761197432443,-1616.0,0.00032943,3]
[392133279,1761197432453,-7951.74863638,0.00033298,2]
[392133281,1761197432462,-501.80992451,0.00034383,5]
[392133283,1761197432471,-501.28387655,0.00034383,5]
[392133285,1761197432482,-500.0,0.00034383,5]
[392133286,1761197432490,-500.0,0.00034383,5]
[392133288,1761197432500,-500.0,0.00034383,5]
[392133290,1761197432509,-508.32529215,0.00034383,5]
[392133292,1761197432518,-501.05311295,0.00034383,5]
[392133294,1761197432527,-500.0,0.00034383,2]
[392133295,1761197432536,-183.85123454,0.00034931,2]
[392133296,1761197432545,-1001.89,0.00036,14]
[392133298,1761197432554,-824.24,0.00036122,2]
[392133300,1761197432564,-12380.37404563,0.00036176,10]
[392133301,1761197432573,-620.42018765,0.00036907,2]
[392133302,1761197432582,-620.42018756,0.00037906,2]
[392133303,1761197432591,-2104.90153477,0.00038681,2]
[392133304,1761197432601,-620.42018756,0.00038905,2]
[392133305,1761197432610,-1250.27,0.00038916,2]
[392133306,1761197432619,-161.0,0.00039,30]
[392133307,1761197432628,-161.0,0.00039,120]
[392133309,1761197432638,-150.45051851,0.00039,120]
[392133311,1761197432647,-200.0,0.00039353,2]
[392133313,1761197432656,-972.190713,0.00039452,120]
[392133314,1761197432665,-210.121425,0.00039452,120]
[392133316,1761197432674,-208.83058,0.00039452,120]
[392133319,1761197432683,-396.462476,0.00039452,120]
[392133321,1761197432693,-835.979239,0.00039452,120]
[392133323,1761197432702,-2748.2986,0.00039452,120]
[392133325,1761197432712,-299.03990001,0.00039726,15]
[392133327,1761197432721,-3728.23372251,0.0003985,60]
[392133329,1761197432730,-620.42018756,0.00039905,15]
[392133331,1761197432739,-174.59272281,0.0004,120]
[392133332,1761197432748,-179.86635809,0.0004,120]
[392133334,1761197432757,-153.80869401,0.0004,30]
[392133337,1761197432767,-316.10808323,0.00040246,2]
[392133339,1761197432776,-150.0,0.00040488,4]
[392133341,1761197432786,-150.0,0.00040488,4]
[392133343,1761197432794,-150.0,0.00040488,4]
[392133344,1761197432804,-150.0,0.00040488,4]
[392133346,1761197432813,-150.0,0.00040488,4]
[392133349,1761197432822,-150.0,0.00040488,4]
[392133350,1761197432832,-150.0,0.00040488,4]
[392133351,1761197432841,-150.0,0.00040488,4]
[392133352,1761197432850,-500.0,0.00040707,30]
[392133353,1761197432858,-800.0,0.00040751,30]
[392133354,1761197432868,-620.42018756,0.00040904,15]
[392133355,1761197432878,-535.57092575,0.000411,2]
[392133356,1761197432887,-500.0,0.0004134,30]
[392133357,1761197432897,-500.0,0.00041365,7]
[392133358,1761197432907,-223.72,0.00041788,7]
[392133359,1761197432917,-620.42018756,0.00041903,15]
[392133360,1761197432927,-605.42425025,0.00041977,2]
[392133361,1761197432936,-250.0,0.00042553,120]
[392133362,1761197432945,-892.987,0.00042899,65]
[392133363,1761197432955,-177.381,0.00042899,65]
[392133364,1761197432964,-17724.70669276,0.000429,7]
[392133365,1761197432975,-620.42018756,0.00042902,15]
[392133366,1761197432985,-161.0,0.00043,90]
[392133367,1761197432994,-163.0,0.00043,90]
[392133368,1761197433004,-152.0,0.00043054,3]
[392133369,1761197433014,-1000.0,0.00043063,2]
[392133370,1761197433023,-5000.0,0.00043752,120]
[392133371,1761197433033,-620.42018756,0.00043902,15]
[392133372,1761197433042,-161.0,0.00044,45]
[392133373,1761197433052,-161.0,0.00044,60]
[392133374,1761197433061,-35931.45,0.00044,60]
[392133375,1761197433070,-2890.12,0.00044035,2]
[392133376,1761197433080,-571.05371134,0.00044476,2]
[392133377,1761197433089,-900.0,0.00044705,30]
[392133378,1761197433099,-181.11341665,0.000448,15]
[392133379,1761197433108,-711.18237497,0.000448,15]
[392133380,1761197433118,-162.81565535,0.000448,28]
[392133381,1761197433127,-1386.67207448,0.00044804,17]
[392133382,1761197433136,-1992.85181,0.0004482,25]
[392133383,1761197433146,-185.8357459,0.000449,17]
[392133384,1761197433155,-8746.38842072,0.000449,2]
[392133385,1761197433164,-5000.0,0.000449,120]
[392133386,1761197433174,-155555.0,0.000449,60]
[392133387,1761197433183,-160.76716901,0.000449,20]
[392133388,1761197433192,-197.48958924,0.000449,2]
[392133389,1761197433201,-620.42018756,0.00044901,15]
[392133390,1761197433210,-810.68,0.00044904,120]
[392133391,1761197433220,-711.18237488,0.00044922,15]
[392133392,1761197433229,-571.05371134,0.00044923,2]
[392133393,1761197433238,-151.0,0.00044958,2]
[392133394,1761197433248,-151.0,0.00044958,2]
[392133395,1761197433258,-151.0,0.00044958,2]
[392133396,1761197433267,-151.0,0.00044958,2]
[392133397,1761197433276,-151.0,0.00044958,2]
[392133398,1761197433286,-151.0,0.00044958,2]
[392133399,1761197433296,-151.0,0.00044958,2]
[392133400,1761197433407,-151.0,0.00044958,2]
[392133401,1761197433418,-151.0,0.00044958,2]
[392133402,1761197433428,-151.0,0.00044958,2]
[392133403,1761197433438,-151.0,0.00044958,2]
[392133404,1761197433448,-151.0,0.00044958,2]
[392133405,1761197433458,-151.0,0.00044958,2]
[392133406,1761197433467,-151.0,0.00044958,2]
[392133407,1761197433476,-151.0,0.00044958,2]
[392133408,1761197433486,-151.0,0.00044958,2]
[392133409,1761197433495,-151.0,0.00044958,2]
[392133410,1761197433504,-151.0,0.00044958,2]
[392133411,1761197433513,-151.0,0.00044958,2]
[392133412,1761197433523,-151.0,0.00044958,2]
[392133413,1761197433532,-151.0,0.00044958,2]
[392133414,1761197433541,-151.0,0.00044958,2]
[392133415,1761197433551,-151.0,0.00044958,2]
[392133416,1761197433560,-151.0,0.00044958,2]
[392133417,1761197433570,-151.0,0.00044958,2]
[392133418,1761197433579,-151.0,0.00044958,2]
[392133419,1761197433588,-151.0,0.00044958,2]
[392133420,1761197433598,-151.0,0.00044958,2]
[392133421,1761197433608,-151.0,0.00044958,2]
[392133422,1761197433617,-151.0,0.00044958,2]
[392133423,1761197433627,-151.0,0.00044958,2]
[392133424,1761197433637,-151.0,0.00044958,2]
[392133425,1761197433646,-151.0,0.00044958,2]
[392133426,1761197433655,-151.0,0.00044958,2]
[392133427,1761197433665,-151.0,0.00044958,2]
[392133428,1761197433674,-151.0,0.00044958,2]
[392133429,1761197433684,-151.0,0.00044958,2]
[392133430,1761197433692,-151.0,0.00044958,2]
[392133431,1761197433702,-151.0,0.00044958,2]
[392133432,1761197433712,-500.0,0.00044973,3]
[392133433,1761197433721,-502.04782026,0.00044973,10]
[392133434,1761197433731,-3831.2760406,0.00044974,2]
[392133435,1761197433740,-7170.8952587,0.00044985,2]
[392133436,1761197433749,-1924.9253264,0.00044985,2]
[392133437,1761197433758,-8573.0936634,0.00044985,2]
[392133438,1761197433768,-1996.5742219,0.00044985,2]
[392133439,1761197433777,-151.65533254,0.00044986,30]
[392133440,1761197433786,-1992.8518,0.00044999,26]
[392133441,1761197433796,-325.27958509,0.00044999,120]
[392133442,1761197433806,-250.0,0.00044999,120]
[392133443,1761197433820,-187950.9835388,0.00045,120]
[392133444,1761197433830,-565000.0,0.00045,120]
[392133445,1761197433839,-348446.02977528,0.00045,120]
[392133446,1761197433901,-3236.4,0.00045,120]
[392133447,1761197433912,-20669.86239915,0.00045,120]
[392133448,1761197437006,-466.09999292,0.00034382,7]
[392133449,1761197437031,-173.90906035,0.00034382,7]
[392133450,1761197437055,-166.67,0.00040021,2]
[392133452,1761197438054,-307.33373497,0.00045,120]
[392133453,1761197438133,-11482.30193367,0.00045,120]
[392133456,1761197440074,-15753.74634302,0.00045,120]
[392133457,1761197440087,-389.29957647,0.00045,120]
[392133458,1761197440308,-1996.57422173,0.00045,120]
[392133459,1761197440321,-2099.51427245,0.00045,120]
[392133470,1761197441360,510.12,0.00043,120]
[392133471,1761197441819,518.01710267,0.00027999,2]
[392133478,1761197443486,-318166.96042625,0.00045,120]
[392133479,1761197443498,-1322.47166,0.00045,120]
[392133480,1761197443610,-178.73884798,0.00045,120]
[392133481,1761197443624,-906.50878354,0.00045,120]
[392133482,1761197443640,-445.2568,0.00045,120]
[392133487,1761197447983,-274599.00122549,0.00045,120]
[392133488,1761197447993,-115691.71024796,0.00045,120]
[392133489,1761197448111,-569.59901657,0.00036176,2]
[392133490,1761197448122,-815.39054278,0.00045,120]
[392133491,1761197448135,-898.42964528,0.00045,120]
[392133492,1761197448146,-570.26680001,0.00045,120]
[392133493,1761197448163,-10524.1809715,0.00045,120]
[392133494,1761197448174,-533.1900028,0.00045,120]
[392133495,1761197448343,151.0,0.00035738,2]
[392133496,1761197464726,194.53,0.0003562,2]
[392133497,1761197469952,151.0,0.00027983,2]
[392133498,1761197470364,151.0,0.00027983,2]
[392133499,1761197471022,151.0,0.00027983,2]
[392133500,1761197471646,151.0,0.00027983,2]
[392133501,1761197472449,151.0,0.00027983,2]
[392133502,1761197473152,151.0,0.00027983,2]
[392133503,1761197473762,291.79566579,0.00027983,2]
[392133504,1761197474009,151.0,0.00027983,2]
[392133505,1761197474626,151.0,0.00027983,2]
[392133506,1761197475797,151.0,0.00027983,2]
[392133507,1761197476481,151.0,0.00027983,2]
[392133508,1761197477114,151.0,0.00027983,2]
[392133509,1761197477783,151.0,0.00027983,2]
[392133510,1761197478384,151.0,0.00027983,2]
[392133511,1761197479015,151.0,0.00027983,2]
[392133512,1761197479684,151.0,0.00027983,2]
[392133513,1761197480337,151.0,0.00027983,2]
[392133514,1761197480990,151.0,0.00027983,2]
[392133515,1761197481617,151.0,0.00027983,2]
[392133516,1761197482235,151.0,0.00027983,2]
[392133517,1761197482959,151.0,0.00027983,2]
[392133518,1761197483610,151.0,0.00027983,2]
[392133519,1761197484236,151.0,0.00027983,2]
[392133520,1761197484914,151.0,0.00027983,2]
[392133521,1761197485554,151.0,0.00027983,2]
[392133522,1761197485808,200.0,0.00044571,2]
[392133523,1761197486197,151.0,0.00027983,2]
[392133524,1761197486899,151.0,0.00027983,2]
[392133525,1761197492256,500.0,0.00034383,5]
[392133526,1761197494783,714.389,0.00029664,23]
[392133527,1761197499027,481.0,0.0004365,30]
[392133528,1761197499125,481.0,0.000441,30]
[392133529,1761197499238,481.0,0.0004455,30]
[392133530,1761197528874,587.07369635,0.00036176,120]
[392133532,1761197636395,-500.0,0.00024932,2]
[392133533,1761198146035,844.21,0.00020714,2]
[392133534,1761198146225,844.21,0.00021805,2]
[392133535,1761198146430,844.21,0.00022895,2]
[392133536,1761198146634,844.21,0.00023985,2]
[392133537,1761198201339,500.0,0.00024932,2]
[392133540,1761198354125,-325.58932115,0.00025075,2]
[392133541,1761198363690,1418.3,0.00025,2]
[392133542,1761198366720,186.73154804,0.00025088,120]
[392133543,1761198410150,-213.86819397,0.00025075,2]
[392133544,1761198410176,1025.85101272,0.00025,2]
[392133545,1761198435123,-304.75248488,0.00025075,2]
[392133546,1761198435146,-56.9045831,0.000251,2]
[392133548,1761198443139,-298.29047643,0.000251,2]
[392133549,1761198443160,-844.21,0.00026165,2]
[392133550,1761198443180,-247.599932,0.00026865,2]
[392133551,1761198443200,-246.09618467,0.00027256,2]
[392133552,1761198444096,-598.11381533,0.00027256,2]
[392133553,1761198444116,-1200.0,0.00027582,2]
[392133554,1761198444139,-300.0,0.00027582,2]
[392133555,1761198444159,-298.68892444,0.00027583,2]
[392133556,1761198444181,-2500.0,0.00027583,120]
[392133557,1761198444200,-162.99628738,0.00027583,2]
[392133558,1761198448089,-87.00371262,0.00027583,2]
[392133559,1761198448108,-1578.15246395,0.00027583,120]
[392133560,1761198571157,-190.83750033,0.00027533,2]
[392133561,1761198571179,-921.84753605,0.00027583,120]
[392133562,1761198571202,-337.5361207,0.00027583,2]
[392133563,1761198571224,-844.21,0.00028346,2]
[392133564,1761198571245,-365.16052011,0.00029335,2]
[392133565,1761198571266,-300.0,0.00029435,2]
[392133566,1761198571289,-300.0,0.00029435,2]
[392133567,1761198571313,-844.21,0.00029436,2]
[392133568,1761198571335,-1680.0,0.00029932,2]
[392133569,1761198571355,-250.0,0.00030231,2]
[392133570,1761198571375,-150.0,0.00030231,120]
[392133571,1761198571400,-327.86594352,0.00030341,120]
[392133572,1761198571420,-844.21,0.00030526,2]
[392133573,1761198571440,-844.21,0.00031617,2]
[392133574,1761198571460,-420.0,0.00031743,3]
[392133575,1761198571479,-1200.0,0.00032482,3]
[392133576,1761198571499,-300.0,0.00032706,3]
[392133577,1761198571524,-844.21,0.00032707,2]
[392133578,1761198571545,-151.0,0.0003284,2]
[392133579,1761198571565,-151.0,0.0003284,2]
[392133580,1761198571584,-151.0,0.0003284,2]
[392133581,1761198571603,-151.0,0.0003284,2]
[392133582,1761198571624,-151.0,0.0003284,2]
[392133583,1761198571645,-151.0,0.0003284,2]
[392133584,1761198571665,-151.0,0.0003284,2]
[392133585,1761198571685,-151.0,0.0003284,2]
[392133586,1761198571704,-151.0,0.0003284,2]
[392133587,1761198571727,-151.0,0.0003284,2]
[392133588,1761198571746,-151.0,0.0003284,2]
[392133589,1761198571765,-151.0,0.0003284,2]
[392133590,1761198571787,-151.0,0.0003284,2]
[392133591,1761198571807,-151.0,0.0003284,2]
[392133592,1761198571826,-151.0,0.0003284,2]
[392133593,1761198571848,-151.0,0.0003284,2]
[392133594,1761198571870,-151.0,0.0003284,2]
[392133595,1761198571891,-151.0,0.0003284,2]
[392133596,1761198571911,-151.0,0.0003284,2]
[392133597,1761198571933,-151.0,0.0003284,2]
[392133598,1761198571953,-450.0,0.00032859,2]
[392133599,1761198571976,-500.0,0.00032859,2]
[392133600,1761198571999,-500.0,0.00032859,2]
[392133601,1761198572021,-500.0,0.00032859,2]
[392133602,1761198572041,-500.0,0.00032859,2]
[392133603,1761198572062,-500.0,0.00032859,2]
[392133604,1761198572084,-500.0,0.00032859,2]
[392133605,1761198572105,-500.0,0.00032859,2]
[392133606,1761198572126,-500.0,0.00032859,2]
[392133607,1761198572146,-500.0,0.00032859,2]
[392133608,1761198572168,-500.0,0.00032859,2]
[392133609,1761198572189,-500.0,0.00032859,2]
[392133610,1761198572209,-500.0,0.00032859,2]
[392133611,1761198572231,-500.0,0.00032859,2]
[392133612,1761198572252,-611.80357257,0.00032859,2]
[392133613,1761198572273,-500.0,0.00032859,2]
[392133614,1761198572295,-500.0,0.00032859,2]
[392133615,1761198572319,-500.0,0.00032859,2]
[392133616,1761198572340,-500.0,0.00032859,2]
[392133617,1761198572362,-500.0,0.00032859,2]
[392133618,1761198572383,-500.0,0.00032859,2]
[392133619,1761198572417,-500.0,0.00032859,2]
[392133620,1761198572439,-500.0,0.00032859,2]
[392133621,1761198572460,-418.937376,0.00032861,2]
[392133622,1761198572480,-844.21,0.00033797,2]
[392133623,1761198572500,-300.0,0.00034232,3]
[392133624,1761198572521,-839.23325072,0.00034887,2]
[392133630,1761198632257,-151.0,0.0003284,2]
[392133631,1761198632270,-151.0,0.0003284,2]
[392133632,1761198632281,-151.0,0.0003284,2]
[392133633,1761198632294,-151.0,0.0003284,2]
[392133634,1761198632304,-151.0,0.0003284,2]
[392133635,1761198632315,-151.0,0.0003284,2]
[392133636,1761198632326,-36.71067945,0.0003284,2]
[392133637,1761198632339,-114.28932055,0.0003284,2]
[392133638,1761198632350,-151.0,0.0003284,2]
[392133639,1761198632360,-151.0,0.0003284,2]
[392133640,1761198632370,-151.0,0.0003284,2]
[392133641,1761198632381,-151.0,0.0003284,2]
[392133642,1761198632391,-151.0,0.0003284,2]
[392133643,1761198632402,-151.0,0.0003284,2]
[392133644,1761198632414,-113.64420212,0.0003284,2]
[392133645,1761198632431,-37.35579788,0.0003284,2]
[392133646,1761198632440,-151.0,0.0003284,2]
[392133647,1761198632451,-106.48722289,0.0003284,2]
[392133648,1761198632463,-44.51277711,0.0003284,2]
[392133649,1761198632472,-151.0,0.0003284,2]
[392133650,1761198632482,-151.0,0.0003284,2]
[392133651,1761198632492,-151.0,0.0003284,2]
[392133652,1761198632502,-151.0,0.0003284,2]
[392133653,1761198632512,-4.97674928,0.00034887,2]